Workbook

Sheet 槽列モデルステップ応答
A1: 微分方程式数 | B1: 10 | D1: N= | E1: 10 | I1: 常微分方程式解法シート Runge-Kutta法 | L1: VBAプログラムは吉川浩氏（日大）による | AB1: 1 | AC1: 0
A2: θ= | B2: E1= | C2: E2= | D2: E3= | E2: E4= | F2: E5= | G2: E6= | H2: E7= | I2: E8= | J2: E9= | K2: E10= | AB2: 1 | AC2: 1
A3: 2.5 | B3: 1 | C3: 0.9999999996 | D3: 0.9999999953 | E3: 0.9999999593 | F3: 0.9999997342 | G3: 0.9999986084 | H3: 0.9999939168 | I3: 0.9999771555 | J3: 0.999924756 | K3: 0.9997791407
B4: E1'= | C4: E2'= | D4: E3'= | E4: E4'= | F4: E5'= | G4: E6'= | H4: E7'= | I4: E8'= | J4: E9'= | K4: E10'=
A5: 微分方程式→ | B5: =$E$1*(1-B3) -> 1.386157855e-10 | C5: =$E$1*(B3-C3) -> 3.46177087e-09 | D5: =$E$1*(C3-D3) -> 4.324362868e-08 | E5: =$E$1*(D3-E3) -> 3.602389387e-07 | F5: =$E$1*(E3-F3) -> 2.251269742e-06 | G5: 1.125735709e-05 | H5: 4.691639533e-05 | I5: 0.0001676132225 | J5: 0.0005239946006 | K5: 0.001456152668
A7: 積分区間t=[a, | B7: 0
A8: b] | B8: 2.5
A9: 積分刻み幅Δt | B9: 0.05
A10: 計算結果
A11: θ | B11: E1 | C11: E2 | D11: E3 | E11: E4 | F11: E5 | G11: E6 | H11: E7 | I11: E8 | J11: E9 | K11: E10
A12: 0 | B12: 0 | C12: 0 | D12: 0 | E12: 0 | F12: 0 | G12: 0 | H12: 0 | I12: 0 | J12: 0 | K12: 0
A13: 0.05 | B13: 0.3932291667 | C13: 0.09114583333 | D13: 0.01302083333 | E13: 0.002604166667 | F13: 0 | G13: 0 | H13: 0 | I13: 0 | J13: 0 | K13: 0
A14: 0.1 | B14: 0.6318291558 | C14: 0.265238444 | D14: 0.07917616102 | E14: 0.01933458116 | F14: 0.003777398003 | G14: 0.0005764431424 | H14: 6.103515625e-05 | I14: 6.781684028e-06 | J14: 0 | K14: 0
A15: 0.15 | B15: 0.7766046701 | C15: 0.4429498425 | D15: 0.1905483846 | E15: 0.06555693238 | F15: 0.01872659613 | G15: 0.004516848811 | H15: 0.000913867244 | I15: 0.0001572856197 | J15: 2.265859533e-05 | K15: 2.666755959e-06
A16: 0.2 | B16: 0.8644502295 | C16: 0.5945142058 | D16: 0.3231200402 | E16: 0.1426387808 | F16: 0.0526894704 | G16: 0.01665771426 | H16: 0.004561092521 | I16: 0.001090169091 | J16: 0.0002284755033 | K16: 4.203291035e-05
A17: 0.25 | B17: 0.9177523528 | C17: 0.7130157203 | D17: 0.4562086566 | E17: 0.2422135096 | F17: 0.1087470141 | G17: 0.04208172859 | H17: 0.01424319971 | I17: 0.004261000575 | J17: 0.001135019557 | K17: 0.0002705832905
A18: 0.3 | B18: 0.9500945266 | C18: 0.801020666 | D18: 0.5769245081 | E18: 0.3526495649 | F18: 0.1846117092 | G18: 0.08391654176 | H18: 0.03356150825 | I18: 0.01193926491 | J18: 0.003810170685 | K18: 0.001097897708
A19: 0.35 | B19: 0.9697188143 | C19: 0.8641895319 | D19: 0.6792829256 | E19: 0.463337473 | F19: 0.2744369537 | G19: 0.1423325993 | H19: 0.06531256331 | I19: 0.0267801467 | J19: 0.009895436517 | K19: 0.003318048144
A20: 0.4 | B20: 0.9816262597 | C20: 0.9084467276 | D20: 0.762006437 | E20: 0.5665599266 | F20: 0.3710831297 | G20: 0.2147906971 | H20: 0.1106618495 | I20: 0.05116430936 | J20: 0.02139395306 | K20: 0.008145737258
A21: 0.45 | B21: 0.9888513503 | C21: 0.9388977439 | D21: 0.8265002813 | E21: 0.6577633241 | F21: 0.467861789 | G21: 0.296992567 | H21: 0.1689079996 | I21: 0.08659549995 | J21: 0.04028633425 | K21: 0.01711464248
A22: 0.5 | B22: 0.9932353245 | C22: 0.9595571119 | D22: 0.8753964696 | E22: 0.7350396481 | F22: 0.5595098781 | G22: 0.38398186 | H22: 0.2377607003 | I22: 0.1333569451 | J22: 0.06811163 | K22: 0.03185264592
A23: 0.55 | B23: 0.9958953922 | C23: 0.9734169394 | D23: 0.9116485993 | E23: 0.7983590707 | F23: 0.6425097881 | G23: 0.4710501346 | H23: 0.313908829 | I23: 0.1904816261 | J23: 0.1056449837 | K23: 0.0537977828
A24: 0.6 | B24: 0.9975094437 | C24: 0.9826302405 | D24: 0.9380399749 | E24: 0.8488411217 | F24: 0.714982953 | G24: 0.5543140631 | H24: 0.393653519 | I24: 0.2559779825 | J24: 0.1527477214 | K24: 0.08393446807
A25: 0.65 | B25: 0.9984888031 | C25: 0.988708181 | D25: 0.9569627744 | E25: 0.8881811548 | F25: 0.7763693433 | G25: 0.630971935 | H25: 0.4734494643 | I25: 0.32720019 | J25: 0.2083997652 | K25: 0.1226138916
A26: 0.7 | B26: 0.9990830498 | C26: 0.9926919462 | D26: 0.9703571342 | E26: 0.9182528426 | F26: 0.8270449888 | G26: 0.6993158818 | H26: 0.5502792639 | I26: 0.4012515591 | J26: 0.2708752822 | K26: 0.1694900651
A27: 0.75 | B27: 0.9994436214 | C27: 0.9952886907 | D27: 0.9797342956 | E27: 0.9408631002 | F27: 0.8679671276 | G27: 0.7585925128 | H27: 0.6218500754 | I27: 0.4753383259 | J27: 0.3379995001 | K27: 0.223569525
A28: 0.8 | B28: 0.9996624057 | C28: 0.9969732422 | D28: 0.9862366866 | E28: 0.9576216558 | F28: 0.900388249 | G28: 0.8087926072 | H28: 0.6866406239 | I28: 0.5470285044 | J28: 0.4074243978 | K28: 0.2833483957
A29: 0.85 | B29: 0.9997951576 | C29: 0.99806147 | D29: 0.9907081152 | E29: 0.9698884071 | F29: 0.9256490366 | G29: 0.850427823 | H29: 0.7438426525 | I29: 0.614403403 | J29: 0.4768749182 | K29: 0.3469990015
A30: 0.9 | B30: 0.9998757076 | C30: 0.9987618771 | D30: 0.9937603544 | E30: 0.9787686588 | F30: 0.9450431387 | G30: 0.8843294717 | H30: 0.7932414019 | I30: 0.676112135 | J30: 0.5443366943 | K30: 0.4125681208
A31: 0.95 | B31: 0.999924583 | C31: 0.9992111965 | D31: 0.9958302384 | E31: 0.9851345254 | F31: 0.959739452 | G31: 0.9114860262 | H31: 0.8350718607 | I31: 0.7313514465 | J31: 0.6081746367 | K31: 0.4781564787
A32: 1 | B32: 0.9999542392 | C32: 0.9994985948 | D32: 0.9972257339 | E32: 0.9896580372 | F32: 0.9707462859 | G32: 0.9329234074 | H32: 0.8698767565 | I32: 0.7797966041 | J32: 0.6671856706 | K32: 0.542059985
A33: 1.05 | B33: 0.9999722337 | C33: 0.9996819384 | D33: 0.9981616151 | E33: 0.9928470901 | F33: 0.9789034833 | G33: 0.9496246504 | H33: 0.8983818906 | I33: 0.8215069217 | J33: 0.7205974218 | K33: 0.6028641741
A34: 1.1 | B34: 0.9999831522 | C34: 0.9997986217 | D34: 0.9987862713 | E34: 0.9950793397 | F34: 0.9848914648 | G34: 0.9624820018 | H34: 0.9213960792 | I34: 0.856824512 | J34: 0.7680282838 | K34: 0.6594922223
A35: 1.15 | B35: 0.9999897772 | C35: 0.9998727201 | D35: 0.9992013956 | E35: 0.9966317314 | F35: 0.9892491679 | G35: 0.9722735423 | H35: 0.9397370996 | I35: 0.886279067 | J35: 0.8094243108 | K35: 0.7112129437
A36: 1.2 | B36: 0.9999937971 | C36: 0.9999196821 | D36: 0.9994761823 | E36: 0.9977049376 | F36: 0.9923954674 | G36: 0.9796569507 | H36: 0.9541814543 | I36: 0.910506148 | J36: 0.8449861784 | K36: 0.757618307
A37: 1.25 | B37: 0.9999962363 | C37: 0.9999493917 | D37: 0.9996574154 | E37: 0.998442847 | F37: 0.9946507153 | G37: 0.9851742611 | H37: 0.9654339716 | I37: 0.9301822305 | J37: 0.8750962491 | K37: 0.7985808058
A38: 1.3 | B38: 0.9999977163 | C38: 0.9999681554 | D38: 0.9997765477 | E38: 0.9989476829 | F38: 0.9962565187 | G38: 0.9892628914 | H38: 0.9741127082 | I38: 0.9459767551 | J38: 0.9002524263 | K38: 0.8342001816
A39: 1.35 | B39: 0.9999986143 | C39: 0.9999799877 | D39: 0.9998546175 | E39: 0.9992914718 | F39: 0.9973928824 | G39: 0.9922695695 | H39: 0.9807448418 | I39: 0.9585195797 | J39: 0.9210125215 | K39: 0.8647472399
A40: 1.4 | B40: 0.9999991592 | C40: 0.9999874386 | D40: 0.9999056325 | E40: 0.9995245903 | F40: 0.9981924725 | G40: 0.9944649132 | H40: 0.9857698572 | I40: 0.9683812859 | J40: 0.9379505343 | K40: 0.8906104055
A41: 1.45 | B41: 0.9999994898 | C41: 0.9999921241 | D41: 0.9999388803 | E41: 0.9996820383 | F41: 0.9987521261 | G41: 0.9960572897 | H41: 0.9895470959 | I41: 0.9760635024 | J41: 0.9516246133 | K41: 0.9122486182
A42: 1.5 | B42: 0.9999996904 | C42: 0.999995067 | D42: 0.9999604953 | E42: 0.9997879862 | F42: 0.9991419173 | G42: 0.9972052186 | H42: 0.9923654942 | I42: 0.9819965324 | J42: 0.9625554566 | K42: 0.9301524321
A43: 1.55 | B43: 0.9999998122 | C43: 0.9999969133 | D43: 0.9999745153 | E43: 0.9998590339 | F43: 0.9994121561 | G43: 0.9980280077 | H43: 0.9944539986 | I43: 0.9865419312 | J43: 0.971213403 | K43: 0.9448138354
A44: 1.6 | B44: 0.999999886 | C44: 0.9999980703 | D44: 0.9999835895 | E44: 0.9999065243 | F44: 0.9995987063 | G44: 0.9986145883 | H44: 0.995991682 | I44: 0.9899981294 | J44: 0.9780123205 | K44: 0.9567043759
A45: 1.65 | B45: 0.9999999308 | C45: 0.9999987947 | D45: 0.9999894508 | E45: 0.9999381724 | F45: 0.9997269668 | G45: 0.9990306697 | H45: 0.9971169923 | I45: 0.9926076517 | J45: 0.9833084927 | K45: 0.9662606093
A46: 1.7 | B46: 0.999999958 | C46: 0.9999992478 | D46: 0.9999932295 | E46: 0.9999592032 | F46: 0.9998148174 | G46: 0.9993244165 | H46: 0.9979358542 | I46: 0.9945648961 | J46: 0.9874029318 | K46: 0.9738756128
A47: 1.75 | B47: 0.9999999745 | C47: 0.9999995309 | D47: 0.9999956614 | E47: 0.9999731412 | F47: 0.9998747757 | G47: 0.9995308754 | H47: 0.9985285441 | I47: 0.9960237782 | J47: 0.9905458312 | K47: 0.9798952411
A48: 1.8 | B48: 0.9999999846 | C48: 0.9999997077 | D48: 0.9999972237 | E48: 0.9999823553 | F48: 0.99991556 | G48: 0.9996753759 | H48: 0.9989553745 | I48: 0.9971048176 | J48: 0.9929421655 | K48: 0.9846178802
A49: 1.85 | B49: 0.9999999906 | C49: 0.999999818 | D49: 0.9999982259 | E49: 0.9999884321 | F49: 0.9999432142 | G49: 0.9997761115 | H49: 0.9992613003 | I49: 0.997901437 | J49: 0.9947577127 | K49: 0.9882966111
A50: 1.9 | B50: 0.9999999943 | C50: 0.9999998867 | D50: 0.9999988678 | E50: 0.9999924307 | F50: 0.999961909 | G50: 0.9998460742 | H50: 0.9994795841 | I50: 0.9984853914 | J50: 0.9961250011 | K50: 0.9911428893
A51: 1.95 | B51: 0.9999999965 | C51: 0.9999999295 | D51: 0.9999992784 | E51: 0.9999950562 | F51: 0.9999745113 | G51: 0.9998944922 | H51: 0.9996346707 | I51: 0.9989113287 | J51: 0.9971488656 | K51: 0.9933310403
A52: 2 | B52: 0.9999999979 | C52: 0.9999999562 | D52: 0.9999995406 | E52: 0.9999967767 | F52: 0.9999829836 | G52: 0.9999278873 | H52: 0.999744412 | I52: 0.999220545 | J52: 0.9979114386 | K52: 0.9950030569
A53: 2.05 | B53: 0.9999999987 | C53: 0.9999999728 | D53: 0.9999997078 | E53: 0.999997902 | F53: 0.9999886649 | G53: 0.9999508471 | H53: 0.9998217685 | I53: 0.9994440211 | J53: 0.9984764982 | K53: 0.996273336
A54: 2.1 | B54: 0.9999999992 | C54: 0.9999999831 | D54: 0.9999998144 | E54: 0.9999986366 | F54: 0.9999924653 | G54: 0.9999665843 | H54: 0.9998760979 | I54: 0.9996048438 | J54: 0.9988931657 | K54: 0.997233124
A55: 2.15 | B55: 0.9999999995 | C55: 0.9999999895 | D55: 0.9999998822 | E55: 0.9999991153 | F55: 0.9999950016 | G55: 0.9999773397 | H55: 0.9999141221 | I55: 0.9997201094 | J55: 0.9991989876 | K55: 0.9979545349
A56: 2.2 | B56: 0.9999999997 | C56: 0.9999999935 | D56: 0.9999999253 | E56: 0.9999994268 | F56: 0.9999966906 | G56: 0.9999846701 | H56: 0.9999406465 | I56: 0.9998024035 | J56: 0.9994224605 | K56: 0.9984940789
A57: 2.25 | B57: 0.9999999998 | C57: 0.999999996 | D57: 0.9999999527 | E57: 0.9999996291 | F57: 0.9999978129 | G57: 0.999989653 | H57: 0.9999590904 | I57: 0.9998609409 | J57: 0.99958507 | K57: 0.9988956905
A58: 2.3 | B58: 0.9999999999 | C58: 0.9999999975 | D58: 0.9999999701 | E58: 0.9999997604 | F58: 0.9999985572 | G58: 0.9999930316 | H58: 0.9999718767 | I58: 0.9999024328 | J58: 0.9997029156 | K58: 0.9991932767
A59: 2.35 | B59: 0.9999999999 | C59: 0.9999999985 | D59: 0.9999999811 | E59: 0.9999998454 | F59: 0.9999990498 | G59: 0.9999953169 | H59: 0.9999807153 | I59: 0.9999317434 | J59: 0.9997879909 | K59: 0.999412826
A60: 2.4 | B60: 1 | C60: 0.999999999 | D60: 0.999999988 | E60: 0.9999999003 | F60: 0.9999993752 | G60: 0.9999968591 | H60: 0.999986808 | I60: 0.9999523821 | J60: 0.999849182 | K60: 0.9995741299
A61: 2.45 | B61: 1 | C61: 0.9999999994 | D61: 0.9999999925 | E61: 0.9999999358 | F61: 0.9999995899 | G61: 0.9999978975 | H61: 0.9999909968 | I61: 0.9999668696 | J61: 0.9998930385 | K61: 0.9996921691
A62: 2.5 | B62: 1 | C62: 0.9999999996 | D62: 0.9999999952 | E62: 0.9999999587 | F62: 0.9999997312 | G62: 0.9999985953 | H62: 0.9999938693 | I62: 0.999977009 | J62: 0.9999243644 | K62: 0.9997782184

Sheet 解析解
A1: 槽列モデル ステップ入力解析解 Levenspiel p. 327
A2: N= | B2: 10
A3: θ | B3: F | D3: N-1 | E3: 1 | F3: 2 | G3: 3 | H3: 4 | I3: 5 | J3: 6 | K3: 7 | L3: 8 | M3: 9
A4: 0 | B4: =1-EXP(-$B$2*A4)*(1+SUM(E4:M4)) -> 0 | E4: =$B$2*A4 -> 0 | F4: =($B$2*A4)^$F$3/FACT($F$3) -> 0 | G4: =($B$2*A4)^$G$3/FACT($G$3) -> 0 | H4: =($B$2*A4)^$H$3/FACT($H$3) -> 0 | I4: =($B$2*A4)^$I$3/FACT($I$3) -> 0 | J4: =($B$2*A4)^$J$3/FACT($J$3) -> 0 | K4: =($B$2*A4)^$K$3/FACT($K$3) -> 0 | L4: =($B$2*A4)^$L$3/FACT($L$3) -> 0 | M4: =($B$2*A4)^$M$3/FACT($M$3) -> 0
A5: 0.1935483871 | B5: =1-EXP(-$B$2*A5)*(1+SUM(E5:M5)) -> 3.548710988e-05 | E5: =$B$2*A5 -> 1.935483871 | F5: =($B$2*A5)^$F$3/FACT($F$3) -> 1.873048907 | G5: =($B$2*A5)^$G$3/FACT($G$3) -> 1.20841865 | H5: =($B$2*A5)^$H$3/FACT($H$3) -> 0.5847187016 | I5: =($B$2*A5)^$I$3/FACT($I$3) -> 0.2263427232 | J5: =($B$2*A5)^$J$3/FACT($J$3) -> 0.07301378167 | K5: =($B$2*A5)^$K$3/FACT($K$3) -> 0.0201881424 | L5: =($B$2*A5)^$L$3/FACT($L$3) -> 0.004884228 | M5: =($B$2*A5)^$M$3/FACT($M$3) -> 0.001050371613
A6: 0.3870967742 | B6: 0.006557958111 | E6: 3.870967742 | F6: 7.49219563 | G6: 9.667349199 | H6: 9.355499225 | I6: 7.242967142 | J6: 4.672882027 | K6: 2.584082227 | L6: 1.250362368 | M6: 0.5377902658
A7: 0.5806451613 | B7: 0.07124445747 | E7: 5.806451613 | F7: 16.85744017 | G7: 32.62730355 | H7: 47.36221483 | I7: 55.00128174 | J7: 53.22704684 | K7: 44.15146743 | L7: 32.04541991 | M7: 20.67446446
A8: 0.7741935484 | B8: 0.2519163477 | E8: 7.741935484 | F8: 29.96878252 | G8: 77.3387936 | H8: 149.6879876 | I8: 231.7749485 | J8: 299.0644497 | K8: 330.7625251 | L8: 320.0927662 | M8: 275.3486161
A9: 0.9677419355 | B9: 0.5011197235 | E9: 9.677419355 | F9: 46.82622268 | G9: 151.0523312 | H9: 365.4491885 | I9: 707.32101 | J9: 1140.840339 | K9: 1577.198625 | L9: 1907.901562 | M9: 2051.507056
A10: 1.161290323 | B10: 0.7221565276 | E10: 11.61290323 | F10: 67.42976067 | G10: 261.0184284 | H10: 757.7954372 | I10: 1760.041016 | J10: 3406.530998 | K10: 5651.38783 | L10: 8203.627496 | M10: 10585.3258
A11: 1.35483871 | B11: 0.8674367835 | E11: 13.5483871 | F11: 91.77939646 | G11: 414.4875969 | H11: 1403.909602 | I11: 3804.142149 | J11: 8589.9984 | K11: 16625.80336 | L11: 28156.60246 | M11: 42386.28327
A12: 1.548387097 | B12: 0.9443822417 | E12: 15.48387097 | F12: 119.8751301 | G12: 618.7103488 | H12: 2395.007802 | I12: 7416.798354 | J12: 19140.12478 | K12: 42337.60321 | L12: 81943.74814 | M12: 140978.4914
A13: 1.741935484 | B13: 0.9790196846 | E13: 17.41935484 | F13: 151.7169615 | G13: 880.9371958 | H13: 3836.339401 | I13: 13365.31146 | J13: 38802.51715 | K13: 96559.25926 | L13: 210250 | M13: 406935.4839
A14: 1.935483871 | B14: 0.9927562405 | E14: 19.35483871 | F14: 187.3048907 | G14: 1208.41865 | H14: 5847.187016 | I14: 22634.27232 | J14: 73013.78167 | K14: 201881.424 | L14: 488422.8 | M14: 1050371.613
A15: 2.129032258 | B15: 0.9976782955 | E15: 21.29032258 | F15: 226.6389178 | G15: 1608.405223 | H15: 8560.86651 | I15: 36452.72191 | J15: 129348.3681 | K15: 393409.7831 | L15: 1046977.649 | M15: 2476721.319
